Workbook

Sheet ورقة1 (hidden)
A1: اسم المستخدم | B1: كلمة المرور
A2: عبدالباري | B2: 5490290
A3: 1 | B3: 1
A4: حسين | B4: حسين

Sheet ورقة2
A2: Customer Name | B2: TOTAL GOODS IN | E2: Import Container | F2: Declaration No FZ Transit In | G2: DATE IN | H2: HS CODE | I2: GOODS DESCRIPTION | J2: ORIGIN | K2: PKG - TYPE | L2: DETAILS GOODS IN | O2: DETAILS GOODS OUT 1 | V2: DETAILS GOODS OUT 2 | AC2: DETAILS GOODS OUT 3 | AJ2: DETAILS GOODS OUT 4 | AQ2: DETAILS GOODS OUT 5 | AX2: DETAILS GOODS OUT 6 | BE2: COMMENTS
B3: TOTAL CTN | C3: TOTAL WT | D3: TOTAL VALUE | L3: QTY | M3: WT | N3: VALUE | O3: QTY | P3: WT | Q3: VALUE | R3: INVICE- NO | S3: Export Container | T3: Declaration No FZ Transit out | U3: DATE OUT | V3: QTY | W3: WT | X3: VALUE | Y3: TRIP- NO | Z3: Export container | AA3: Declaration No FZ Transit out | AB3: DATE OUT | AC3: QTY | AD3: WT | AE3: VALUE | AF3: TRIP- NO | AG3: Export container | AH3: Declaration No FZ Transit out | AI3: DATE OUT | AJ3: QTY | AK3: WT | AL3: VALUE | AM3: TRIP- NO | AN3: Export container | AO3: Declaration No FZ Transit out | AP3: DATE OUT | AQ3: QTY | AR3: WT | AS3: VALUE | AT3: TRIP- NO | AU3: Export container | AV3: Declaration No FZ Transit out | AW3: DATE OUT | AX3: QTY | AY3: WT | AZ3: VALUE | BA3: TRIP- NO | BB3: Export container | BC3: Declaration No FZ Transit out | BD3: DATE OUT
A4: حاوية 1 | B4: =L7+L8+L9+L6+L5+L4 -> 6 | C4: =M7+M8+M9+M6+M5+M4 -> 3000 | D4: =N7+N6+N5+N4+N8+N9 -> 9239.88 | E4: 4047894 | F4: 305-00190060-18 | G4: 2018-02-26 | H4: 84253900 | I4: WEBBING BELT ACCESSORIES | J4: CN | K4: U | L4: 1 | M4: 500 | N4: 1539.98 | O4: 1 | P4: =M:M/L:L*O:O -> 500 | Q4: =N:N/L:L*O:O -> 1539.98 | R4: 3834 | S4: CCCU1520501 | T4: 102-04244946-18 | U4: 19/04/2018 | W4: =M4/L4*V4 -> 0 | X4: =N4/L4*V4 -> 0 | AD4: =M4/L4*AC4 -> 0 | AE4: =N4/L4*AC4 -> 0 | AK4: =M4/L4*AJ4 -> 0 | AL4: =N4/L4*AJ4 -> 0 | AR4: =M4/L4*AQ4 -> 0 | AS4: =N4/L4*AQ4 -> 0 | AY4: =M4/L4*AX4 -> 0 | AZ4: =N4/L4*AX4 -> 0 | BE4: =L4-O4-V4-AC4-AJ4-AQ4-AX4 -> 0
E5: 4047894 | F5: 305-00190060-18 | G5: 2018-02-26 | H5: 73158900 | I5: CHAINS AND CHAINS BLOCK | J5: CN | K5: KG | L5: 1 | M5: 500 | N5: 1539.98 | O5: 1 | P5: =M:M/L:L*O:O -> 500 | Q5: =N:N/L:L*O:O -> 1539.98 | R5: 3834 | S5: CCCU1520501 | T5: 102-04244946-18 | U5: 19/04/2018 | W5: 0 | X5: 0 | AD5: 0 | AE5: 0 | AK5: =M5/L5*AJ5 -> 0 | AL5: =N5/L5*AJ5 -> 0 | AR5: =M5/L5*AQ5 -> 0 | AS5: =N5/L5*AQ5 -> 0 | AY5: =M5/L5*AX5 -> 0 | AZ5: =N5/L5*AX5 -> 0 | BE5: =L5-O5-V5-AC5-AJ5-AQ5-AX5 -> 0
E6: 4047894 | F6: 305-00190060-18 | G6: 2018-02-26 | H6: 73121090 | I6: STEEL WIRE ROPE ROPES | J6: CN | K6: KG | L6: 1 | M6: 500 | N6: 1539.98 | O6: 1 | P6: =M:M/L:L*O:O -> 500 | Q6: =N:N/L:L*O:O -> 1539.98 | R6: 3834 | S6: CCCU1520501 | T6: 102-04244946-18 | U6: 19/04/2018 | W6: 0 | X6: 0 | AD6: 0 | AE6: 0 | AK6: 0 | AL6: 0 | AR6: 0 | AS6: 0 | AY6: 0 | AZ6: 0 | BE6: 0
E7: 4047894 | F7: 305-00190060-18 | G7: 2018-02-26 | H7: 73269060 | I7: FITTINGS | J7: CN | K7: KG | L7: 1 | M7: 500 | N7: 1539.98 | O7: 1 | P7: =M:M/L:L*O:O -> 500 | Q7: =N:N/L:L*O:O -> 1539.98 | R7: 3834 | S7: CCCU1520501 | T7: 102-04244946-18 | U7: 19/04/2018 | W7: 0 | X7: 0 | AD7: 0 | AE7: 0 | AK7: 0 | AL7: 0 | AR7: 0 | AS7: 0 | AY7: 0 | AZ7: 0 | BE7: 0
E8: 4047894 | F8: 305-00190060-18 | G8: 2018-02-26 | H8: 84311000 | I8: HOIST SCALE | J8: CN | K8: KG | L8: 1 | M8: 500 | N8: 1539.98 | O8: 1 | P8: =M:M/L:L*O:O -> 500 | Q8: =N:N/L:L*O:O -> 1539.98 | R8: 3834 | S8: CCCU1520501 | T8: 102-04244946-18 | U8: 19/04/2018 | W8: 0 | X8: 0 | AD8: 0 | AE8: 0 | AK8: 0 | AL8: 0 | AR8: 0 | AS8: 0 | AY8: 0 | AZ8: 0 | BE8: 0
E9: 4047894 | F9: 305-00190060-18 | G9: 2018-02-26 | H9: 82054000 | I9: LIFTING TOOLS | J9: CN | K9: KG | L9: 1 | M9: 500 | N9: 1539.98 | O9: 1 | P9: =M:M/L:L*O:O -> 500 | Q9: =N:N/L:L*O:O -> 1539.98 | R9: 3834 | S9: CCCU1520501 | T9: 102-04244946-18 | U9: 19/04/2018 | W9: 0 | X9: 0 | AD9: 0 | AE9: 0 | AK9: 0 | AL9: 0 | AR9: 0 | AS9: 0 | AY9: 0 | AZ9: 0 | BE9: 0
A10: حاوية 2 | B10: =L10+L11 -> 1150 | C10: =M10+M11 -> 27500 | D10: =N10+N11 -> 130541.64 | E10: 8842392 | F10: 302-04905285-18 | G10: 2018-02-25 | H10: 84101300 | I10: WATER PUMP | J10: IT | K10: U | L10: 650 | M10: 11650 | N10: 61297.89 | O10: 550 | P10: =M:M/L:L*O:O -> 9857.692308 | Q10: =N:N/L:L*O:O -> 51867.44538 | R10: 3807 | T10: 303-03661769-18 | U10: 10/03/2018 | V10: 100 | W10: 1792.307692 | X10: 9430.444615 | Y10: TRNS | AA10: 502-02260575-18 | AB10: 2018-07-12 | AD10: 0 | AE10: 0 | AK10: 0 | AL10: 0 | AR10: 0 | AS10: 0 | AY10: 0 | AZ10: 0 | BE10: 0
E11: 8842392 | F11: 302-04905285-18 | G11: 2018-02-25 | H11: 39229000 | I11: SHATTAF SET | J11: DE | K11: KG | L11: 500 | M11: 15850 | N11: 69243.75 | O11: 500 | P11: =M:M/L:L*O:O -> 15850 | Q11: =N:N/L:L*O:O -> 69243.75 | R11: 3807 | T11: 303-03661769-18 | U11: 10/03/2018 | W11: 0 | X11: 0 | AD11: 0 | AE11: 0 | AK11: 0 | AL11: 0 | AR11: 0 | AS11: 0 | AY11: 0 | AZ11: 0 | BE11: 0
A12: حاوية 3 | B12: =L12 -> 1107 | C12: =M12 -> 26514 | D12: =N12 -> 137304.89 | E12: 7932326 | F12: 302-04902408-18 | G12: 2018-02-24 | H12: 40092210 | I12: BASIN HOSE | J12: ES | K12: KG | L12: 1107 | M12: 26514 | N12: 137304.89 | O12: 1107 | P12: =M:M/L:L*O:O -> 26514 | Q12: =N:N/L:L*O:O -> 137304.89 | R12: 3806 | T12: 303-03661769-18 | U12: 10/03/2018 | W12: 0 | X12: 0 | AD12: 0 | AE12: 0 | AK12: 0 | AL12: 0 | AR12: 0 | AS12: 0 | AY12: 0 | AZ12: 0 | BE12: 0
A13: حاوية 4 | B13: 1752 | C13: 14450 | D13: 91125.92 | E13: 6503831 | F13: 302-04894056-18 | G13: 2018-02-19 | H13: 94054090 | I13: ELECTRICAL GOODS | J13: CN | K13: KG | L13: 1752 | M13: 14450 | N13: 91125.92 | O13: 260 | P13: =M:M/L:L*O:O -> 2144.406393 | Q13: =N:N/L:L*O:O -> 13523.25297 | R13: استلام التاجر | V13: 1492 | W13: 12305.59361 | X13: 77602.66703 | Y13: 3801 | Z13: OOLU8452196 | AA13: 303-03645748-18 | AB13: 2018-03-01 | AD13: 0 | AE13: 0 | AK13: 0 | AL13: 0 | AR13: 0 | AS13: 0 | AY13: 0 | AZ13: 0 | BE13: 0
A14: حاوية 5 | B14: =L14 -> 511 | C14: =M14 -> 7738.6 | D14: =N14 -> 71232.06 | E14: 3115490 | F14: 302-04923154-18 | G14: 2018-03-06 | H14: 84818090 | I14: FAUCET | J14: DE | K14: KG | L14: 511 | M14: 7738.6 | N14: 71232.06 | O14: 511 | P14: =M:M/L:L*O:O -> 7738.6 | Q14: =N:N/L:L*O:O -> 71232.06 | R14: 3827 | T14: 303-03715821-18 | U14: 04/04/2018 | W14: =M:M/L:L*V:V -> 0 | X14: 0 | AD14: =M14/L14*AC14 -> 0 | AE14: =N14/L14*AC14 -> 0 | AK14: 0 | AL14: 0 | AR14: 0 | AS14: 0 | AY14: 0 | AZ14: 0 | BE14: 0
A15: TOTAL : | L15: =SUBTOTAL(9,L4:L14) -> 4526 | M15: 79202.6 | N15: 439444.39 | O15: 2934 | P15: 65104.6987 | Q15: 352411.2784 | V15: =SUBTOTAL(9,V4:V14) -> 1592 | W15: =SUBTOTAL(9,W4:W14) -> 14097.9013 | X15: =SUBTOTAL(9,X4:X14) -> 87033.11165 | AC15: =SUBTOTAL(9,AC4:AC14) -> 0 | AD15: =SUBTOTAL(9,AD4:AD14) -> 0 | AE15: =SUBTOTAL(9,AE4:AE14) -> 0 | AJ15: =SUBTOTAL(9,AJ4:AJ14) -> 0 | AK15: =SUBTOTAL(9,AK4:AK14) -> 0 | AL15: =SUBTOTAL(9,AL4:AL14) -> 0 | AQ15: =SUBTOTAL(9,AQ4:AQ14) -> 0 | AR15: =SUBTOTAL(9,AR4:AR14) -> 0 | AS15: =SUBTOTAL(9,AS4:AS14) -> 0 | AX15: =SUBTOTAL(9,AX4:AX14) -> 0 | AY15: =SUBTOTAL(9,AY4:AY14) -> 0 | AZ15: =SUBTOTAL(9,AZ4:AZ14) -> 0 | BE15: =L15-O15-V15-AC15-AJ15-AQ15-AX15 -> 0
A17: قيم ثابتة لا تتغير- استيراد - | F17: "على سبيل المثال" | I17: المطلوب : إضافة كود او كبسة ترحيل "على سبيل المثال" للاكسل شيت يتم من خلالها نقل هذه البيانات حصراً عند التظليل عليها سواء كان المراد ترحيله من حاوية واحدة او من اكثرمن حاوية,وترحيلها تلقيائياً للفاتورة بشرط ان توضع كل معلومة بمكانها المحدد في الفاتورة . باقي البيانات غير مهمة لهذا السبب لا اريد ادراجها بالفاتورة .
A18: قيم متغيرة - تصدير - | E18: عمل ترحيل للبيانات المولونة بالاحمر من الحاوية رقم 1 بالكامل لـ (فاتورة التجارية )
A19: القيم المراد نقلها للفاتورة من كل سطر عند اللزوم بدون حذفها من هنا
E21: هذه الفاتورة المطلوبة " معبأة يدوية نسخ و لصق للتوضيح "
A23: يتم إضافة حاويات يومياً بعدد اسطر مختلف

Sheet Sheet1 (hidden)

Sheet فاتورة تجارية
B3: INVOICE
B6: Consignee Name : | I6: INVOICE NO : 3834 DATE : متغير
B8: DESCRIPTION | C8: H.S.CODE | D8: ORIGIN | E8: ITEM | F8: QTY - Ctns | G8: WEIGHT- UNIT | H8: Declaration NO | I8: UNIT- PRICE | J8: Total Amount ( AED )
B9: WEBBING BELT ACCESSORIES | C9: 84253900 | D9: CN | E9: U | F9: 1 | G9: 500 | H9: 305-00190060-18 | I9: =J9/F9 -> 1539.98 | J9: 1539.98
B10: CHAINS AND CHAINS BLOCK | C10: 73158900 | D10: CN | E10: KG | F10: 1 | G10: 500 | H10: 305-00190060-18 | I10: 1539.98 | J10: 1539.98
B11: STEEL WIRE ROPE ROPES | C11: 73121090 | D11: CN | E11: KG | F11: 1 | G11: 500 | H11: 305-00190060-18 | I11: 1539.98 | J11: 1539.98
B12: FITTINGS | C12: 73269060 | D12: CN | E12: KG | F12: 1 | G12: 500 | H12: 305-00190060-18 | I12: 1539.98 | J12: 1539.98
B13: HOIST SCALE | C13: 84311000 | D13: CN | E13: KG | F13: 1 | G13: 500 | H13: 305-00190060-18 | I13: 1539.98 | J13: 1539.98
B14: LIFTING TOOLS | C14: 82054000 | D14: CN | E14: KG | F14: 1 | G14: 500 | H14: 305-00190060-18 | I14: =J14/F14 -> 1539.98 | J14: 1539.98
F15: =SUM(F9:F14) -> 6 | G15: =SUM(G9:G14) -> 3000 | J15: =SUM(J9:J14) -> 9239.88
B17: Container No : | C17: CCCU1520501
